bitfinex/quotes_BTCUSD_20251217
["timestamp","ask_amount","ask_price","bid_price","bid_amount"]
[1765988064635,0.71242,87326.0,87294.0,0.01145554]
[1765988064847,0.71242,87326.0,87286.0,0.01866]
[1765988064848,0.0099789,87325.0,87308.0,0.50006]
[1765988065045,0.01856,87331.0,87305.0,0.01145409]
[1765988065269,0.74948,87329.0,87305.0,0.4883]
[1765988065470,0.74948,87327.0,87305.0,0.01145409]
[1765988065698,0.74948,87327.0,87301.0,0.01145462]
[1765988065699,0.00998078,87326.0,87301.0,0.01145462]
[1765988066006,0.01459078,87326.0,87298.0,0.50701]
[1765988066178,0.70998078,87326.0,87298.0,0.50701]
[1765988066382,0.69839,87322.0,87292.0,0.0114558]
[1765988066587,0.69839,87320.0,87292.0,0.0114558]
[1765988066832,0.69839,87320.0,87289.0,0.50705008]
[1765988066833,0.70531,87318.0,87289.0,0.50705008]
[1765988067119,0.70531,87316.0,87290.0,0.01145606]
[1765988067302,0.00998078,87315.0,87293.0,0.47345]
[1765988067612,0.70531,87309.0,87289.0,4.008e-05]
[1765988067811,0.70531,87307.0,87289.0,8e-08]
[1765988068037,0.09059,87315.0,87289.0,8e-08]
[1765988068038,0.02854078,87306.0,87289.0,8e-08]
[1765988068156,0.00998078,87305.0,87289.0,8e-08]
[1765988068356,0.00998078,87304.0,87289.0,8e-08]
[1765988068807,0.0285426,87303.0,87289.0,8e-08]
[1765988069027,0.7389026,87302.0,87289.0,8e-08]
[1765988069310,0.00997923,87301.0,87289.0,8e-08]
[1765988069508,0.00997923,87300.0,87289.0,8e-08]
[1765988069703,0.02853923,87299.0,87289.0,8e-08]
[1765988069962,0.01856,87302.0,87298.0,0.00147498]
[1765988070191,0.00997951,87301.0,87289.0,8e-08]
[1765988070464,0.69234951,87301.0,87289.0,8e-08]
[1765988070666,0.00997951,87300.0,87289.0,8e-08]
[1765988070866,0.01856,87300.0,87289.0,8e-08]
[1765988071089,0.00161,87315.0,87289.0,8e-08]
[1765988071291,0.01856,87310.0,87289.0,8e-08]
[1765988071450,0.00996944,87309.0,87289.0,8e-08]
[1765988071632,0.69233944,87309.0,87289.0,8e-08]
[1765988071835,0.00996944,87308.0,87289.0,8e-08]
[1765988072032,0.68237,87307.0,87289.0,8e-08]
[1765988073045,0.68237,87305.0,87289.0,8e-08]
[1765988073670,0.00996291,87304.0,87289.0,8e-08]
[1765988073867,0.69233291,87304.0,87289.0,8e-08]
[1765988074065,0.00996291,87303.0,87289.0,8e-08]
[1765988074267,0.68237,87304.0,87289.0,8e-08]
[1765988074446,0.68237,87308.0,87289.0,8e-08]
[1765988074650,0.69232785,87307.0,87289.0,8e-08]
[1765988074886,0.69232785,87306.0,87289.0,8e-08]
[1765988075071,0.76978,87304.0,87286.0,8e-08]
[1765988075248,0.08741,87301.0,87286.0,8e-08]
[1765988075431,0.08741,87294.0,87286.0,8e-08]
[1765988075645,0.70093,87293.0,87286.0,8e-08]
[1765988075870,0.68237,87288.0,87259.0,0.0002]
[1765988076068,0.68237,87288.0,87259.0,0.71815]
[1765988076310,0.68237,87296.0,87261.0,0.22919543]
[1765988076655,0.68237,87294.0,87259.0,0.48838]
[1765988076893,0.68237,87292.0,87259.0,0.48838]
[1765988077092,0.2907,87289.0,87264.0,0.01351176]
[1765988077292,0.2907,87289.0,87259.0,0.48838]
[1765988077293,0.68237,87287.0,87260.0,0.01351176]
[1765988077521,0.2907,87305.0,87265.0,0.48818]
[1765988077722,0.08741,87296.0,87260.0,0.01351176]
[1765988077870,0.0099427,87295.0,87260.0,0.01351176]
[1765988078072,1.02495826,87300.0,87259.0,0.0002]
[1765988078073,0.2907,87289.0,87259.0,0.0002]
[1765988078276,0.1134328,87294.0,87259.0,0.0002]
[1765988078277,0.68237,87283.0,87259.0,0.0002]
[1765988078476,0.0285027,87288.0,87259.0,0.0002]
[1765988078477,0.68237,87278.0,87259.0,0.0002]
[1765988078640,0.68237,87276.0,87249.0,0.01146144]
[1765988078989,0.70093,87276.0,87248.0,0.50169176]
[1765988079338,0.70093,87276.0,87241.0,0.01856]
[1765988079339,0.68237,87274.0,87241.0,0.01856]
[1765988079543,0.08741,87275.0,87240.0,0.48818]
[1765988079544,0.68237,87272.0,87240.0,0.48818]
[1765988079761,0.09734232,87273.0,87240.0,0.48818]
[1765988079762,0.68237,87270.0,87240.0,0.48818]
[1765988080195,0.00993112,87269.0,87240.0,0.48818]
[1765988080354,0.68237,87268.0,87240.0,0.48818]
[1765988080567,0.70522,87266.0,87240.0,0.48818]
[1765988080773,0.00993112,87265.0,87240.0,0.7450611]
[1765988080974,1.12e-06,87264.0,87247.0,0.22923231]
[1765988081178,0.70522,87272.0,87245.0,0.01856]
[1765988081562,0.01856,87273.0,87246.0,0.51581]
[1765988081797,0.70522,87272.0,87245.0,0.01856]
[1765988082060,0.70522,87268.0,87235.0,0.51581]
[1765988082259,0.70522,87263.0,87232.0,0.01856]
[1765988082514,0.08741,87259.0,87214.0,0.01146604]
[1765988082689,0.79263,87254.0,87217.0,0.51581]
[1765988082859,0.79424,87254.0,87217.0,0.52727565]
[1765988083063,0.01856,87253.0,87223.0,0.51581]
[1765988083264,0.01856,87253.0,87216.0,0.03207176]
[1765988083265,0.70522,87248.0,87216.0,0.03207176]
[1765988083521,0.08741,87246.0,87216.0,0.01351176]
[1765988083730,0.70522,87243.0,87216.0,0.01351176]
[1765988083953,0.00161,87243.0,87216.0,0.01351176]
[1765988084151,0.2907,87254.0,87231.0,0.51581]
[1765988084517,0.2907,87254.0,87233.0,0.51581]
[1765988084721,0.29231,87254.0,87233.0,0.51581]
[1765988085048,0.70522,87253.0,87224.0,0.51581]
[1765988085227,0.70683,87253.0,87224.0,0.51581]
[1765988085570,0.7677,87252.0,87216.0,0.01351176]
[1765988085747,0.2907,87246.0,87207.0,0.01146696]
[1765988085913,0.2907,87243.0,87207.0,0.49052]
[1765988086110,0.72853,87242.0,87207.0,0.49052]
[1765988086314,0.72853,87240.0,87207.0,0.49052]
[1765988086561,0.08741,87237.0,87204.0,0.01146736]
[1765988086761,0.08741,87237.0,87202.0,0.01856]
[1765988086929,1.00307,87235.0,87207.0,0.49914]
[1765988087134,0.2907,87234.0,87202.0,0.01856]
[1765988087343,0.08741,87231.0,87194.0,0.1]
[1765988087570,0.2907,87203.0,87168.0,0.0001]
[1765988087769,0.30926,87202.0,87168.0,0.0001]
[1765988087976,0.2907,87197.0,87168.0,0.0001]
[1765988088223,0.68658,87196.0,87173.0,0.01147144]
[1765988088400,0.68658,87196.0,87173.0,0.5137]
[1765988088620,0.68658,87203.0,87172.0,0.5137]
[1765988088783,0.68658,87194.0,87168.0,0.0001]
[1765988088980,0.70514,87194.0,87168.0,0.0001]
[1765988090270,0.74947,87188.0,87159.0,0.00822198]
[1765988090747,0.2907,87197.0,87160.0,0.70010514]
[1765988090877,0.2907,87197.0,87170.0,0.47487]
[1765988091272,0.7432,87194.0,87161.0,0.47487]
[1765988091436,0.74481,87194.0,87161.0,0.47487]
[1765988091644,0.74481,87194.0,87160.0,0.01856]
[1765988091858,0.7432,87189.0,87160.0,0.01856]
[1765988092191,0.2907,87186.0,87159.0,0.00822198]
[1765988092397,0.7432,87185.0,87159.0,0.00822198]
[1765988092610,0.74481,87185.0,87159.0,0.00822198]
[1765988093435,0.61166591,87185.0,87159.0,0.00822198]
[1765988094225,0.61166591,87185.0,87161.0,0.01147302]
[1765988094435,0.02017,87185.0,87163.0,0.47487]
[1765988094647,0.00161,87185.0,87163.0,0.47487]
[1765988094808,0.00161,87185.0,87159.0,0.00822198]
[1765988095296,0.00161,87185.0,87159.0,0.48309198]
[1765988095502,0.0186,87184.0,87160.0,0.47487]
[1765988095817,0.7618,87184.0,87160.0,0.47487]
[1765988096017,0.7432,87184.0,87159.0,0.00822198]
[1765988096243,0.7618,87184.0,87159.0,0.49456526]
[1765988096440,0.7432,87184.0,87162.0,0.01351176]
[1765988096641,0.0186,87183.0,87162.0,0.01351176]
[1765988096866,0.7432,87182.0,87159.0,0.48309198]
[1765988097226,0.70010514,87180.0,87159.0,0.00822198]
[1765988097420,0.0186,87183.0,87159.0,0.00822198]
[1765988097421,0.7432,87179.0,87159.0,0.00822198]
[1765988097896,0.2907,87178.0,87159.0,0.00822198]
[1765988098046,0.7432,87178.0,87159.0,0.00822198]
[1765988098240,0.7432,87178.0,87139.0,0.48317147]
[1765988098439,0.7432,87178.0,87140.0,0.70010514]
[1765988098668,0.7432,87178.0,87141.0,0.68687]
[1765988099026,0.02437394,87177.0,87137.0,0.22956239]
[1765988099231,0.02437394,87177.0,87106.0,0.05751166]
[1765988099232,0.01147446,87150.0,87078.0,0.0391439]
[1765988099433,0.00099999,87090.0,87078.0,0.0391439]
[1765988099631,0.00199998,87090.0,87078.0,0.0391439]
[1765988100073,0.7432,87089.0,87078.0,0.0391439]
[1765988100279,1.0,87088.0,87078.0,3.9e-06]
[1765988100483,1.0,87088.0,87036.0,0.01148949]
[1765988100484,0.00099999,87070.0,87060.0,0.05738594]
[1765988100689,0.7432,87069.0,87026.0,0.05779457]
[1765988100897,0.01148369,87080.0,87020.0,0.05743386]
[1765988100898,0.00099999,87040.0,87020.0,0.05743386]
[1765988101092,0.00099999,87040.0,87000.0,29.27522401]
[1765988101093,0.00099999,87050.0,87011.0,0.05742679]
[1765988101293,0.02884458,87053.0,87029.0,0.05709513]
[1765988101470,0.05001839,87063.0,87023.0,0.0574099]
[1765988101724,0.36701839,87070.0,87018.0,0.05735354]
[1765988101954,0.7432,87050.0,87022.0,0.05776313]
[1765988102168,0.7432,87050.0,87014.0,0.70471807]
[1765988102169,0.00099,87049.0,87024.0,0.05731241]
[1765988102393,0.7432,87045.0,87026.0,0.05701794]
[1765988102646,0.2907,87040.0,86975.0,0.02826628]
[1765988102871,0.7432,87033.0,86985.0,0.47487]
[1765988103097,0.7432,87027.0,86975.0,0.01149755]
[1765988103311,0.03254925,87026.0,87000.0,29.20372976]
[1765988103544,0.00161,87001.0,87000.0,27.80274587]
[1765988103768,0.52219241,87001.0,87000.0,26.39866972]
[1765988103988,1.69941381,87001.0,87000.0,26.39866972]
[1765988104209,1.69941381,87001.0,87000.0,25.65087988]
[1765988104435,1.7026742,87001.0,87000.0,25.49453285]
[1765988104680,1.67995402,87001.0,87000.0,24.65502741]
[1765988104901,1.70605613,87001.0,87000.0,24.00996075]
[1765988105122,1.72610761,87001.0,87000.0,23.61276187]
[1765988105343,0.75770634,87001.0,87000.0,21.61674388]
[1765988105577,0.79798697,87001.0,87000.0,18.6456818]
[1765988105823,0.72911762,87001.0,87000.0,14.83470066]
[1765988106044,0.70990649,87001.0,87000.0,13.62557101]
[1765988106291,0.72959261,87001.0,87000.0,12.18475767]
[1765988106560,0.76947589,87001.0,87000.0,10.35145722]
[1765988106769,0.76947589,87001.0,87000.0,9.42532286]
[1765988107039,0.76947589,87001.0,87000.0,8.65900767]
[1765988107040,0.42363016,87001.0,87000.0,8.65900767]
[1765988107223,0.45996906,87001.0,87000.0,8.18418366]
[1765988107419,0.71132319,87001.0,87000.0,7.51472553]
[1765988107654,0.72444418,87001.0,87000.0,6.57263759]
[1765988107846,0.74364688,87001.0,87000.0,6.05166098]
[1765988108047,0.74364688,87001.0,87000.0,2.53321354]
[1765988108251,0.74910834,87001.0,87000.0,0.02618422]
[1765988108425,0.74910834,87001.0,86910.0,4.086e-05]
[1765988108426,1.0,86920.0,86910.0,4.086e-05]
[1765988108634,0.00199997,86880.0,86841.0,0.47487]
[1765988108829,0.00199997,86880.0,86840.0,0.79596061]
[1765988108830,0.00199997,86880.0,86852.0,0.47487]
[1765988109154,1.05001839,86925.0,86865.0,0.47487]
[1765988109329,0.02854096,86927.0,86865.0,0.47487]
[1765988109330,0.00299,86919.0,86866.0,0.2907]
[1765988109534,0.00299,86913.0,86867.0,0.01936]
[1765988109883,0.00299,86913.0,86844.0,0.0115149]
[1765988109884,0.68299,86868.0,86828.0,0.01151702]
[1765988110094,0.68299,86868.0,86810.0,0.02894993]
[1765988110095,0.00299,86868.0,86811.0,0.23038555]
[1765988110266,0.00299,86863.0,86802.0,0.47487]
[1765988110438,0.68,86858.0,86808.0,0.01151967]
[1765988110601,1.0,86853.0,86804.0,1.24096]
[1765988110814,0.68,86846.0,86809.0,0.01944]
[1765988111020,1.68,86840.0,86797.0,0.01152113]
[1765988111263,1.0,86839.0,86803.0,0.01152033]
[1765988111438,0.02816474,86871.0,86836.0,0.01151596]
[1765988111643,1.0,86870.0,86838.0,0.00512103]
[1765988111862,0.05759951,86900.0,86851.0,0.51075]
[1765988112078,0.68,86939.0,86880.0,0.00099999]
[1765988112220,0.00161,86927.0,86897.0,0.51075]
[1765988112421,0.68,86947.0,86900.0,0.51075]
[1765988112618,0.68,86939.0,86910.0,0.00099999]
[1765988112872,0.00161,86911.0,86883.0,0.51075]
[1765988113078,0.00161,86911.0,86860.0,0.2907]
[1765988113079,0.00161,86911.0,86885.0,0.73021]
[1765988113253,0.00161,86911.0,86887.0,0.73021]
[1765988113459,0.00161,86911.0,86880.0,0.79596061]
[1765988113460,0.00161,86911.0,86871.0,0.01151132]
[1765988113641,0.00161,86911.0,86895.0,0.01150814]
[1765988113849,0.00161,86911.0,86880.0,0.51075]
[1765988114065,0.68,86906.0,86881.0,0.01756]
[1765988114322,1.0,86903.0,86882.0,0.01269]
[1765988114463,0.00161,86883.0,86882.0,0.00589]
[1765988114867,1.0,86881.0,86877.0,0.01956]
[1765988115067,1.0,86881.0,86839.0,0.02779552]
[1765988115068,1.0,86877.0,86859.0,0.01956]
[1765988115269,1.0,86876.0,86860.0,0.01956]
[1765988115493,1.0,86899.0,86862.0,0.73021]
[1765988115692,1.0,86899.0,86862.0,0.00161287]
[1765988115955,1.0,86899.0,86834.0,0.2907]
[1765988115956,1.2907,86886.0,86815.0,0.25540419]
[1765988116112,0.2907,86881.0,86835.0,0.47925]
[1765988116320,0.05001839,86898.0,86840.0,0.79596061]
[1765988116520,1.0,86899.0,86849.0,0.01151423]
[1765988116702,0.01351176,86900.0,86850.0,0.0196]
[1765988116885,0.01351176,86900.0,86858.0,0.74586]
[1765988116886,0.9748,86899.0,86858.0,0.74586]
[1765988117091,0.9748,86899.0,86869.0,0.0041396]
[1765988117295,0.9748,86899.0,86869.0,0.00161287]
[1765988117496,0.01351176,86900.0,86852.0,0.74586]
[1765988117497,1.0,86895.0,86852.0,0.74586]
[1765988117735,0.2907,86898.0,86861.0,0.47925]
[1765988117939,1.0,86899.0,86862.0,0.47925]
[1765988118140,1.0,86897.0,86862.0,0.00161287]
[1765988118314,0.01351176,86900.0,86864.0,0.01151224]
[1765988118520,0.01351176,86900.0,86881.0,0.47925]
[1765988118715,1.0,86926.0,86885.0,0.74586]
[1765988119010,1.0,86942.0,86900.0,0.79596061]
[1765988119206,1.0,86942.0,86904.0,0.230139]
[1765988119408,0.00040936,86943.0,86914.0,0.47925]
[1765988119565,0.00040936,86943.0,86915.0,0.0196]
[1765988119775,0.00040936,86943.0,86919.0,0.01150496]
[1765988119980,7e-05,86991.0,86942.0,0.00161287]
[1765988120185,7e-05,86991.0,86943.0,0.47925]
[1765988120186,0.64127,86990.0,86943.0,0.47925]
[1765988120410,0.64127,86990.0,86945.0,0.47925]
[1765988120633,7e-05,86991.0,86961.0,0.0114994]
[1765988120834,0.5092,87023.0,86981.0,0.47925]
[1765988121059,0.0001,87050.0,87000.0,0.79596061]
[1765988121212,0.0001,87050.0,87003.0,0.47925]
[1765988121460,0.0001,87050.0,87003.0,0.48086287]
[1765988121652,0.0001,87050.0,87004.0,0.0196]
[1765988121908,0.0001,87050.0,86985.0,0.01149623]
[1765988121909,1.0,87023.0,86958.0,0.0114998]
[1765988122166,1.0,87023.0,86930.0,0.08522272]
[1765988122167,0.01609176,87010.0,86960.0,0.01964]
[1765988122322,0.2907,86985.0,86960.0,0.01964]
[1765988122625,0.64385,86990.0,86961.0,2e-05]
[1765988122626,0.2907,86978.0,86961.0,2e-05]
[1765988122827,0.2907,86959.0,86902.0,0.47925]
[1765988122985,0.2907,86957.0,86920.0,0.79596061]
[1765988123184,0.30220046,86953.0,86918.0,0.01964]
[1765988123386,0.2907,86951.0,86918.0,0.01964]
[1765988123600,0.30220245,86938.0,86890.0,0.79596061]
[1765988123775,0.2907,86934.0,86891.0,0.01964]
[1765988123978,0.2907,86934.0,86891.0,0.02125287]
[1765988124228,1.0,86931.0,86891.0,0.02125287]
[1765988124453,0.2907,86928.0,86892.0,0.01964]
[1765988124608,1.0,86925.0,86892.0,0.02125287]
[1765988124978,0.01150509,86918.0,86892.0,0.02125287]
[1765988125174,0.01150522,86917.0,86892.0,0.00161287]
[1765988125379,0.2907,86907.0,86866.0,0.74586]
[1765988125581,0.2907,86896.0,86867.0,0.01964]
[1765988125954,0.01151145,86870.0,86828.0,0.74586]
[1765988126142,0.2869,86867.0,86843.0,0.01964]
[1765988126306,0.2907,86870.0,86836.0,0.01964]
[1765988126511,0.01151105,86873.0,86836.0,0.01964]
[1765988126512,0.2907,86858.0,86836.0,0.01964]
[1765988126705,0.05001839,86873.0,86840.0,0.81066904]
[1765988126951,1.0,86874.0,86843.0,0.47925]
[1765988127105,1.0,86872.0,86843.0,0.00161287]
[1765988127327,0.2907,86882.0,86843.0,0.00161287]
[1765988127681,1.0,86877.0,86843.0,0.00161287]
[1765988128113,1.0,86892.0,86861.0,0.47925]
[1765988128251,1.0,86915.0,86870.0,0.81066904]
[1765988128456,0.599,86903.0,86891.0,3.55e-06]
[1765988128658,0.01151145,86870.0,86832.0,0.47925]
[1765988128939,0.2907,86869.0,86832.0,0.47925]
[1765988129090,0.2907,86869.0,86790.0,0.05765701]
[1765988129091,1.0,86862.0,86815.0,0.74586]
[1765988129298,0.01150853,86892.0,86831.0,0.47925]
[1765988129473,0.01150853,86892.0,86830.0,0.81181866]
[1765988129474,1.59741,86883.0,86841.0,0.47925]
[1765988129674,1.0,86855.0,86811.0,0.74586]
[1765988129898,0.2907,86852.0,86811.0,0.74586]
[1765988130099,1.0,86876.0,86823.0,0.74586]
[1765988130301,1.0,86874.0,86830.0,0.81181866]
[1765988130509,0.59741,86899.0,86840.0,0.81181866]
[1765988130837,0.01150853,86892.0,86846.0,0.47925]
[1765988130981,1.0,86884.0,86841.0,0.01964]
[1765988131182,1.0,86897.0,86843.0,0.74586]
[1765988131380,1.0,86897.0,86841.0,0.01964]
[1765988131381,1.0,86892.0,86846.0,0.47925]
[1765988131590,0.2907,86889.0,86850.0,0.81181866]
[1765988131775,1.0,86887.0,86848.0,0.47925]
[1765988131977,1.0,86885.0,86848.0,0.47925]
[1765988132175,0.00980146,86884.0,86860.0,0.81181866]
[1765988132461,0.00980146,86884.0,86841.0,0.01964]
[1765988132462,0.59741,86881.0,86841.0,0.01964]
[1765988132653,0.59741,86881.0,86815.0,0.74586]
[1765988132654,0.2907,86866.0,86815.0,0.74586]
[1765988132876,0.2907,86857.0,86800.0,1.29106866]
[1765988133018,1.0,86854.0,86817.0,0.47925]
[1765988133222,1.0,86852.0,86819.0,0.47925]
[1765988133469,0.59741,86890.0,86842.0,0.47925]
[1765988133662,1.0,86913.0,86871.0,0.47925]
[1765988133862,1.0,86915.0,86872.0,0.01968]
[1765988134074,0.01150721,86902.0,86872.0,0.00161287]
[1765988134269,0.2907,86896.0,86865.0,0.49893]
[1765988134425,0.01150483,86920.0,86860.0,0.81181866]
[1765988134426,0.59741,86889.0,86860.0,0.01968]
[1765988134621,1.0,86868.0,86854.0,0.0194]
[1765988134825,1.0,86868.0,86839.0,0.74586]
[1765988134826,1.0,86868.0,86849.0,0.01902]
[1765988135027,1.0,86868.0,86833.0,0.01151635]
[1765988135028,0.01144,86881.0,86822.0,0.74586]
[1765988135232,0.88811,86874.0,86825.0,0.47925]
[1765988135435,0.88811,86874.0,86825.0,0.00161287]
[1765988135436,0.01151158,86869.0,86825.0,0.00161287]
[1765988135637,0.2907,86861.0,86813.0,0.47925]
[1765988135842,1.0,86882.0,86840.0,0.81181866]
[1765988136059,0.01805562,86916.0,86861.0,0.74586]
[1765988136263,1.0,86928.0,86880.0,0.81181866]
[1765988136518,1.0,86928.0,86879.0,0.47925]
[1765988136519,0.23008075,86926.0,86879.0,0.47925]
[1765988136709,0.01805236,86928.0,86841.0,0.08233348]
[1765988136710,0.01150681,86905.0,86863.0,0.01972]
[1765988136880,1.0,86908.0,86863.0,0.02133287]
[1765988136881,0.74228,86901.0,86863.0,0.02133287]
[1765988137102,1.0,86898.0,86857.0,0.00095287]
[1765988137288,1.01972,86928.0,86873.0,0.2907]
[1765988137466,1.0,86925.0,86858.0,0.47925]
[1765988137688,0.01972,86928.0,86858.0,0.47925]
[1765988137689,0.74228,86916.0,86864.0,0.47925]
[1765988137957,1.0,86911.0,86873.0,0.2907]
[1765988138088,1.0,86904.0,86872.0,0.47925]
[1765988138288,1.0,86904.0,86860.0,0.2907]
[1765988138516,1.0,86902.0,86860.0,0.47925]
[1765988138690,0.3255,86900.0,86860.0,0.2907]
[1765988138913,0.005,86905.0,86860.0,1.10189835]
[1765988139120,1.0,86919.0,86885.0,0.74586]
[1765988139318,1.0,86917.0,86884.0,0.47925]
[1765988139499,0.74228,86913.0,86871.0,0.74511647]
[1765988139844,0.74228,86913.0,86847.0,0.23028826]
[1765988139845,0.74228,86886.0,86820.0,0.81119835]
[1765988139992,1.74228,86883.0,86821.0,0.36553724]
[1765988140206,1.0,86880.0,86821.0,0.13518078]
[1765988140403,0.74228,86874.0,86821.0,0.13518078]
[1765988140609,1.0,86870.0,86810.0,0.81119835]
[1765988140812,0.72579,86866.0,86821.0,0.01972]
[1765988141076,0.72579,86857.0,86808.0,0.01972]
[1765988141265,1.0,86855.0,86811.0,0.01351176]
[1765988141468,0.72579,86852.0,86802.0,0.01351176]
[1765988141646,1.72579,86850.0,86802.0,0.01351176]
[1765988141806,0.00161287,86850.0,86820.0,0.81119835]
[1765988142013,0.00161287,86850.0,86821.0,0.51152176]
[1765988142209,0.00161287,86850.0,86823.0,0.49801]
[1765988142415,1.0,86849.0,86804.0,0.71924]
[1765988142686,1.0,86849.0,86803.0,0.49801]
[1765988142687,1.0,86847.0,86803.0,0.49801]
[1765988142814,0.72579,86842.0,86789.0,0.49801]
[1765988143026,0.5876,86841.0,86796.0,0.94966536]
[1765988143295,0.00161287,86841.0,86815.0,0.49801]
[1765988143898,0.00161287,86841.0,86818.0,0.71924]
[1765988144239,1.0,86840.0,86808.0,0.01972]
[1765988144384,0.01151781,86822.0,86762.0,0.49801]
[1765988144612,0.01151781,86822.0,86738.0,0.05793783]
[1765988144613,1.0,86820.0,86769.0,0.49801]
[1765988144844,1.0,86818.0,86771.0,0.49801]
[1765988145059,1.0,86818.0,86767.0,0.01972]
[1765988145060,0.72579,86815.0,86767.0,0.01972]
[1765988145272,0.02241,86816.0,86763.0,0.71924]
[1765988145273,0.72579,86811.0,86763.0,0.71924]
[1765988145493,1.0,86809.0,86765.0,0.49801]
[1765988145709,0.01972,86821.0,86770.0,0.71924]
[1765988145710,1.0,86807.0,86770.0,0.71924]
[1765988145929,0.00982176,86806.0,86775.0,0.49801]
[1765988146155,0.3129,86840.0,86791.0,0.49801]
[1765988146394,0.72579,86863.0,86821.0,0.49801]
[1765988146622,0.72579,86863.0,86802.0,0.2907]
[1765988146623,0.72579,86859.0,86818.0,0.01972]
[1765988146840,0.01806345,86852.0,86823.0,0.49801]
[1765988147053,0.01806345,86852.0,86818.0,0.03123834]
[1765988147054,0.72579,86887.0,86840.0,0.71924]
[1765988147265,0.72579,86887.0,86821.0,0.34071839]
[1765988147266,0.00982512,86873.0,86841.0,0.49801]
[1765988147485,0.483,86872.0,86841.0,0.49801]
[1765988147701,0.82966363,86890.0,86822.0,0.49801]
[1765988147702,1.0,86867.0,86822.0,0.49801]
[1765988147933,0.0098226,86866.0,86828.0,0.49801]
[1765988148147,0.0098226,86866.0,86823.0,0.01382122]
[1765988148148,0.02189647,86865.0,86836.0,0.49801]
[1765988148359,0.02189647,86865.0,86800.0,0.00099999]
[1765988148360,0.1511,86864.0,86821.0,0.49801]
[1765988148570,0.72579,86862.0,86821.0,0.49801]
[1765988148811,0.72579,86862.0,86820.0,0.01972]
[1765988148812,0.01151383,86852.0,86820.0,0.01972]
[1765988149031,0.1811,86850.0,86810.0,0.71924]
[1765988149247,1.0,86848.0,86810.0,0.71924]
[1765988149459,1.0,86846.0,86810.0,0.71924]
[1765988149683,0.00161287,86848.0,86821.0,0.71924]
[1765988149916,0.72579,86883.0,86825.0,0.71924]
[1765988149917,1.72579,86872.0,86825.0,0.71924]
[1765988150135,1.0,86870.0,86827.0,0.71924]
[1765988150353,1.0,86868.0,86827.0,0.72085287]
[1765988150594,0.04402,86860.0,86783.0,0.01152299]
[1765988150807,0.2907,86841.0,86793.0,0.01351176]
[1765988151024,1.0,86839.0,86794.0,0.49801]
[1765988151234,1.0,86837.0,86796.0,0.49801]
[1765988151455,0.00982323,86836.0,86802.0,0.49801]
[1765988151672,0.00982323,86836.0,86797.0,0.01382536]
[1765988151673,0.01378925,86858.0,86825.0,0.49801]
[1765988151959,1.01378925,86873.0,86832.0,0.49801]
[1765988152166,1.01378925,86873.0,86826.0,0.01976]
[1765988152167,1.72579,86895.0,86842.0,0.01151516]
[1765988152398,1.0,86893.0,86854.0,0.01151357]
[1765988152648,1.0,86893.0,86831.0,0.2907]
[1765988152649,1.0,86911.0,86860.0,0.24176617]
[1765988152862,1.0,86909.0,86863.0,0.01151238]
[1765988153088,0.01308974,86908.0,86869.0,0.48378]
[1765988153314,1.0,86907.0,86870.0,0.48378]
[1765988153536,1.0,86904.0,86863.0,0.68394]
[1765988153755,1.0,86902.0,86866.0,0.48378]
[1765988153972,4.1e-07,86912.0,86881.0,0.77448]
[1765988154195,4.1e-07,86912.0,86905.0,0.01150681]
[1765988154433,4.1e-07,86912.0,86909.0,0.01150628]
[1765988154660,4.1e-07,86912.0,86895.0,0.01150814]
[1765988154872,0.49302,86951.0,86915.0,0.68394]
[1765988155090,0.68335,86974.0,86926.0,1.16772]
[1765988155307,0.00161287,86951.0,86931.0,0.68394]
[1765988155775,0.49302,86968.0,86931.0,0.68394]
[1765988155994,0.00161287,86968.0,86935.0,0.74932]
[1765988156482,0.00161287,86968.0,86934.0,0.52228]
[1765988156483,0.50446,86997.0,86942.0,0.01150192]
[1765988156701,0.50446,86997.0,86955.0,0.52228]
[1765988156919,0.01976,87009.0,86961.0,0.74932]
[1765988157107,0.69104,87020.0,86970.0,1.2716]
[1765988157354,0.69104,87038.0,86977.0,0.01149729]
[1765988157569,0.69104,87038.0,86987.0,0.74932]
[1765988157792,0.69104,87038.0,86991.0,0.52228]
[1765988158009,0.2907,87030.0,86992.0,0.574669]
[1765988158227,0.2907,87030.0,86994.0,0.52228]
[1765988158441,0.50446,87043.0,86999.0,0.52228]
[1765988158659,0.50446,87043.0,87000.0,0.74932]
[1765988158869,0.50446,87043.0,87000.0,0.75093]
[1765988159076,0.50446,87043.0,87000.0,0.52389]
[1765988159292,0.50446,87043.0,87000.0,1.27321]
[1765988159495,0.50446,87043.0,87001.0,0.74932]
[1765988159762,0.50446,87043.0,87003.0,0.74932]
[1765988159967,4e-08,87024.0,87006.0,0.52228]
[1765988160174,4e-08,87024.0,87008.0,0.52228]
[1765988160387,4e-08,87024.0,87023.0,1.27321]
[1765988160599,4e-08,87024.0,87023.0,0.69093]
[1765988160825,4e-08,87024.0,87009.0,0.52228]
[1765988160826,4e-08,87024.0,87009.0,0.522]
[1765988161036,4e-08,87024.0,87017.0,0.011492]
[1765988161248,0.0001,87050.0,87011.0,0.2907]
[1765988161249,4e-08,87050.0,87038.0,0.01148923]
[1765988161468,4e-08,87050.0,87039.0,0.01972]
[1765988161909,4e-08,87050.0,87041.0,0.01148883]
[1765988162128,0.01801507,87096.0,87057.0,0.01148672]
[1765988162366,1.1955,87130.0,87083.0,0.01148329]
[1765988162579,0.01801006,87144.0,87087.0,0.9109]
[1765988162818,0.01801006,87144.0,87094.0,0.76080184]
[1765988163029,0.01976,87157.0,87088.0,0.01976]
[1765988163030,0.107,87155.0,87097.0,0.9109]
[1765988163269,0.03776373,87157.0,87100.0,0.67592712]
[1765988163574,0.01147354,87157.0,87110.0,0.9109]
[1765988163805,0.9142,87145.0,87090.0,0.52197552]
[1765988164043,0.9142,87146.0,87091.0,0.74932]